bitfinex-derivatives/quotes_BTCF0:USTF0_20250903
["timestamp","ask_amount","ask_price","bid_price","bid_amount"]
[1756883454697,0.0031,110810.0,110800.0,2.24873948]
[1756883457613,0.0031,110810.0,110800.0,2.03873948]
[1756883457815,0.0031,110810.0,110800.0,2.27873948]
[1756883458106,0.0031,110810.0,110800.0,1.89873948]
[1756883458309,0.0031,110810.0,110800.0,2.01873948]
[1756883460106,0.0031,110810.0,110800.0,2.26873948]
[1756883460310,0.0031,110810.0,110800.0,2.28715736]
[1756883460907,0.0031,110810.0,110800.0,2.38313335]
[1756883461819,0.0031,110810.0,110800.0,1.53933335]
[1756883462008,0.0031,110810.0,110800.0,2.38289335]
[1756883463014,0.07206755,110850.0,110800.0,2.38289335]
[1756883463210,0.46255299,110850.0,110840.0,0.43757474]
[1756883463412,0.46255299,110850.0,110840.0,1.28105474]
[1756883463619,0.41400775,110850.0,110840.0,1.28105474]
[1756883464422,0.66600775,110850.0,110840.0,1.28105474]
[1756883464815,0.6748947,110850.0,110840.0,1.28105474]
[1756883465015,0.6798947,110850.0,110840.0,1.28205474]
[1756883465214,0.67100775,110850.0,110840.0,1.37803073]
[1756883465419,0.3490402,110850.0,110840.0,1.37803073]
[1756883465620,0.3490402,110850.0,110840.0,1.73062547]
[1756883465825,0.3490402,110850.0,110840.0,0.53455073]
[1756883466124,0.3490402,110850.0,110840.0,1.37795073]
[1756883466521,0.3470402,110850.0,110840.0,0.53455073]
[1756883466822,0.3490402,110850.0,110840.0,1.37795073]
[1756883468824,0.3490402,110850.0,110840.0,0.53455073]
[1756883469025,0.3490402,110850.0,110840.0,1.37787073]
[1756883469426,0.3490402,110850.0,110840.0,1.37783073]
[1756883469638,0.3490402,110850.0,110840.0,0.53455073]
[1756883469825,0.3490402,110850.0,110840.0,1.37783073]
[1756883471624,0.3490402,110850.0,110840.0,0.53455073]
[1756883471830,0.3490402,110850.0,110840.0,1.37779073]
[1756883472132,0.3490402,110850.0,110840.0,1.37775073]
[1756883474341,0.3490402,110850.0,110840.0,1.73034547]
[1756883475434,0.3490402,110850.0,110840.0,1.75034547]
[1756883475634,0.3460402,110850.0,110840.0,1.75034547]
[1756883476240,0.3460402,110850.0,110840.0,2.05034547]
[1756883476837,0.0860402,110850.0,110840.0,2.32034547]
[1756883477139,0.0850402,110850.0,110840.0,2.32034547]
[1756883479947,0.0850402,110850.0,110840.0,1.37751073]
[1756883480337,0.0850402,110850.0,110840.0,1.73010547]
[1756883481851,0.0850402,110850.0,110840.0,1.73006547]
[1756883482050,0.0851402,110850.0,110840.0,1.02487599]
[1756883482245,0.0851402,110850.0,110840.0,1.37747073]
[1756883482453,0.0851402,110850.0,110840.0,1.37743073]
[1756883482946,0.0851402,110850.0,110840.0,0.53455073]
[1756883483150,0.0851402,110850.0,110840.0,1.37743073]
[1756883484447,0.08519157,110850.0,110840.0,2.11002547]
[1756883484648,0.02519157,110850.0,110840.0,2.11002547]
[1756883484951,0.03519157,110850.0,110840.0,2.11002547]
[1756883485153,0.03519157,110850.0,110840.0,2.36002547]
[1756883485552,0.03519157,110850.0,110840.0,2.44582397]
[1756883488952,0.02519157,110850.0,110840.0,2.11566397]
[1756883489251,0.02519157,110850.0,110840.0,2.37566397]
[1756883490252,0.03171898,110870.0,110840.0,1.53294397]
[1756883490458,0.35,110870.0,110860.0,0.60776532]
[1756883491361,0.9122079,110870.0,110860.0,1.18674266]
[1756883491654,0.98302262,110870.0,110860.0,1.18674266]
[1756883492060,0.98402262,110870.0,110860.0,1.18674266]
[1756883492358,0.98402262,110870.0,110860.0,0.04605]
[1756883492560,0.98402262,110870.0,110860.0,1.18674266]
[1756883493450,0.98502262,110870.0,110860.0,1.18670266]
[1756883493852,0.98502262,110870.0,110860.0,0.34410266]
[1756883494050,0.42181472,110870.0,110860.0,1.45036532]
[1756883494349,0.42381472,110870.0,110860.0,1.46888221]
[1756883494550,0.40054524,110870.0,110860.0,2.05254487]
[1756883494853,0.355,110870.0,110860.0,2.05254487]
[1756883495952,0.353,110870.0,110860.0,2.05254487]
[1756883496146,0.354,110870.0,110860.0,2.05254487]
[1756883496650,0.104,110870.0,110860.0,2.05254487]
[1756883497045,0.104,110870.0,110860.0,2.30254487]
[1756883497456,0.004,110870.0,110860.0,4.04962487]
[1756883497855,0.003,110870.0,110860.0,4.04962487]
[1756883498163,0.004,110870.0,110860.0,4.04962487]
[1756883498758,0.003,110870.0,110860.0,4.04962487]
[1756883499766,0.01641798,110900.0,110860.0,3.17263487]
[1756883499968,0.31,110900.0,110890.0,0.34653266]
[1756883500161,0.31,110900.0,110890.0,1.18897266]
[1756883500765,0.39691642,110900.0,110890.0,1.18897266]
[1756883502269,0.41862611,110900.0,110890.0,1.18897266]
[1756883503170,0.42062611,110900.0,110890.0,1.18897266]
[1756883503572,0.42462611,110900.0,110890.0,1.18997266]
[1756883504372,0.42462611,110900.0,110890.0,0.34753266]
[1756883504573,0.42462611,110900.0,110890.0,1.18985266]
[1756883504874,0.42462611,110900.0,110890.0,1.18981266]
[1756883506474,0.42462611,110900.0,110890.0,1.18977266]
[1756883508578,0.42462611,110900.0,110890.0,0.92611]
[1756883508772,0.42462611,110900.0,110890.0,1.18973266]
[1756883509075,0.42472611,110900.0,110890.0,1.18973266]
[1756883512379,0.42472611,110900.0,110890.0,0.92607]
[1756883512579,0.42472611,110900.0,110890.0,1.18973266]
[1756883512981,0.42472611,110900.0,110890.0,1.18961266]
[1756883514181,0.42471899,110900.0,110890.0,1.18961266]
[1756883515587,0.42471899,110900.0,110890.0,0.92595]
[1756883515785,0.42471899,110900.0,110890.0,1.18961266]
[1756883516683,0.42471899,110900.0,110890.0,0.34753266]
[1756883516887,0.42471899,110900.0,110890.0,1.18957266]
[1756883517683,0.93838165,110900.0,110890.0,0.88942]
[1756883517987,0.93838165,110900.0,110890.0,1.18953266]
[1756883519289,0.68838165,110900.0,110890.0,1.18953266]
[1756883519790,0.42471899,110900.0,110890.0,1.18953266]
[1756883519991,0.68838165,110900.0,110890.0,1.18953266]
[1756883520382,0.42471899,110900.0,110890.0,1.18953266]
[1756883520585,0.68838165,110900.0,110890.0,1.18953266]
[1756883524493,0.42471899,110900.0,110890.0,1.18953266]
[1756883524692,0.68838165,110900.0,110890.0,1.18953266]
[1756883528698,0.68838165,110900.0,110890.0,0.34753266]
[1756883529402,0.66667908,110900.0,110890.0,0.34753266]
[1756883529601,0.68839638,110900.0,110890.0,0.34753266]
[1756883529899,0.68839638,110900.0,110890.0,0.08387]
[1756883530202,2.2856844,110900.0,110890.0,0.001]
[1756883530502,2.04374224,110900.0,110890.0,0.001]
[1756883530701,2.02202174,110900.0,110890.0,0.001]
[1756883530904,2.04374205,110900.0,110890.0,0.001]
[1756883531108,2.2856844,110900.0,110890.0,0.001]
[1756883531698,2.2856044,110900.0,110890.0,0.001]
[1756883531995,2.10865606,110900.0,110890.0,0.001]
[1756883532196,2.10865616,110900.0,110890.0,0.001]
[1756883533299,2.0438934,110900.0,110890.0,0.001]
[1756883533505,2.37231882,110900.0,110890.0,0.001]
[1756883534204,2.10865616,110900.0,110890.0,0.001]
[1756883535102,2.37231882,110900.0,110890.0,0.001]
[1756883536309,2.0438934,110900.0,110890.0,0.001]
[1756883536508,2.30747606,110900.0,110890.0,0.001]
[1756883537601,2.4107208,110900.0,110880.0,0.0001]
[1756883537796,1.41741132,110890.0,110880.0,0.0001]
[1756883538002,1.80946298,110890.0,110870.0,0.08396]
[1756883538199,0.52732532,110880.0,110870.0,0.08396]
[1756883538398,0.86937698,110880.0,110870.0,0.04721]
[1756883539612,1.71081698,110880.0,110870.0,0.02466]
[1756883540104,1.71181698,110880.0,110870.0,0.04721]
[1756883541012,1.71381698,110880.0,110870.0,0.04821]
[1756883541412,0.87237698,110880.0,110870.0,0.04821]
[1756883541610,1.71377698,110880.0,110870.0,0.04821]
[1756883544112,0.87237698,110880.0,110870.0,0.04821]
[1756883544411,1.71373698,110880.0,110870.0,0.08486]
[1756883545212,0.87237698,110880.0,110870.0,0.08486]
[1756883545512,1.53805681,110880.0,110870.0,0.08486]
[1756883547012,1.53805681,110880.0,110870.0,0.04821]
[1756883550711,1.53805681,110880.0,110870.0,0.08486]
[1756883553717,1.53805681,110880.0,110870.0,0.04821]
[1756883554214,2.18834796,110880.0,110870.0,0.001]
[1756883554515,2.18810796,110880.0,110870.0,0.001]
[1756883554714,2.30754406,110880.0,110870.0,0.001]
[1756883555312,1.46646406,110880.0,110870.0,0.001]
[1756883555515,2.30750406,110880.0,110870.0,0.001]
[1756883556322,2.25889806,110880.0,110870.0,0.001]
[1756883557319,2.25885806,110880.0,110870.0,0.001]
[1756883557515,2.25885806,110880.0,110860.0,0.0001]
[1756883557709,0.35168515,110870.0,110860.0,0.0001]
[1756883557909,1.56469681,110870.0,110850.0,0.01443]
[1756883558222,0.40029374,110860.0,110850.0,0.03909]
[1756883558422,0.7523454,110860.0,110850.0,0.03899]
[1756883558920,1.5933054,110860.0,110850.0,0.03899]
[1756883559125,1.5933054,110860.0,110850.0,0.01433]
[1756883559509,1.5933054,110860.0,110850.0,0.01533]
[1756883560321,1.5933054,110860.0,110850.0,0.001]
[1756883560322,1.5953054,110860.0,110850.0,0.001]
[1756883561032,2.31399014,110860.0,110840.0,0.0001]
[1756883561234,1.19260515,110850.0,110840.0,0.0001]
[1756883561440,1.54465681,110850.0,110830.0,0.04624]
[1756883561628,0.40023093,110840.0,110830.0,0.08108]
[1756883561824,0.80218259,110840.0,110830.0,0.08108]
[1756883562728,0.81737165,110840.0,110830.0,0.08108]
[1756883563438,0.82137165,110840.0,110830.0,0.08208]
[1756883564135,0.89375702,110840.0,110830.0,0.08208]
[1756883564330,1.73459702,110840.0,110830.0,0.08208]
[1756883564635,0.54207187,110840.0,110830.0,0.08208]
[1756883564831,1.73459702,110840.0,110830.0,0.08208]
[1756883565037,1.73559702,110840.0,110830.0,0.08208]
[1756883568040,1.68705124,110840.0,110830.0,0.08208]
[1756883568232,1.33536609,110840.0,110830.0,0.08208]
[1756883568432,1.68705124,110840.0,110830.0,0.08208]
[1756883570839,1.73559702,110840.0,110830.0,0.08208]
[1756883572144,1.73551702,110840.0,110830.0,0.08208]
[1756883574340,0.89475702,110840.0,110830.0,0.08208]
[1756883574540,1.73539702,110840.0,110830.0,0.08208]
[1756883575948,2.33708217,110840.0,110830.0,0.001]
[1756883576246,2.33708217,110840.0,110800.0,0.01468]
[1756883576247,2.44869689,110840.0,110800.0,0.06318]
[1756883576438,0.40012279,110810.0,110800.0,0.06318]
[1756883576641,1.53739445,110810.0,110800.0,0.06318]
[1756883577038,1.53739445,110810.0,110800.0,0.03827]
[1756883577438,1.53739445,110810.0,110800.0,0.01468]
[1756883577642,0.73207445,110810.0,110800.0,0.01468]
[1756883577834,1.57259445,110810.0,110800.0,0.03927]
[1756883578037,1.57259445,110810.0,110800.0,0.04027]
[1756883578237,1.57259445,110810.0,110800.0,0.06518]
[1756883578844,0.73207445,110810.0,110800.0,0.06518]
[1756883579042,0.73207445,110810.0,110800.0,0.10022]
[1756883579235,0.73207445,110810.0,110800.0,0.09922]
[1756883579440,1.57259445,110810.0,110800.0,0.09922]
[1756883579645,0.73207445,110810.0,110800.0,0.34922]
[1756883579947,1.52415681,110810.0,110800.0,0.34922]
[1756883580148,0.68363681,110810.0,110800.0,0.34922]
[1756883580347,1.52515681,110810.0,110800.0,0.34932]
[1756883580547,0.68463681,110810.0,110800.0,0.34932]
[1756883580748,1.52511681,110810.0,110800.0,0.34932]
[1756883580951,1.52711681,110810.0,110800.0,0.34932]
[1756883581149,0.3833893,110810.0,110800.0,0.70100515]
[1756883581344,0.33495166,110810.0,110800.0,0.70100515]
[1756883581549,1.17543166,110810.0,110800.0,0.70100515]
[1756883582654,1.17543166,110810.0,110800.0,0.34932]
[1756883583151,1.52711681,110810.0,110800.0,0.34932]
[1756883583848,1.52711681,110810.0,110800.0,0.09932]
[1756883587554,1.52711681,110810.0,110800.0,0.03937]
[1756883587956,1.52711681,110810.0,110800.0,0.09932]
[1756883589153,0.33495166,110810.0,110800.0,0.34932]
[1756883589450,1.17519166,110810.0,110800.0,0.34932]
[1756883589959,0.02495166,110810.0,110800.0,0.34932]
[1756883590160,0.03495166,110810.0,110800.0,0.34932]
[1756883592254,0.013,110810.0,110800.0,0.34932]
[1756883592558,0.3348232,110810.0,110800.0,0.34932]
[1756883592758,0.68650835,110810.0,110800.0,0.34932]
[1756883593151,0.68650835,110810.0,110800.0,0.09932]
[1756883593351,1.52658835,110810.0,110800.0,0.09932]
[1756883593650,1.1749032,110810.0,110800.0,0.09932]
[1756883593846,1.52658835,110810.0,110800.0,0.09932]
[1756883595257,0.68650835,110810.0,110800.0,0.09932]
[1756883595557,0.8748232,110810.0,110800.0,0.09932]
[1756883595759,0.0348232,110810.0,110800.0,0.09932]
[1756883596457,0.0348232,110810.0,110800.0,0.70100515]
[1756883597260,0.0348232,110810.0,110800.0,0.34932]
[1756883599464,0.0348232,110810.0,110800.0,0.70100515]
[1756883601961,0.0248232,110810.0,110800.0,0.70100515]
[1756883605967,0.0248232,110810.0,110800.0,0.34932]
[1756883606158,0.0248232,110810.0,110800.0,0.70100515]
[1756883606358,0.0248232,110810.0,110800.0,0.34932]
[1756883606660,0.0248232,110810.0,110800.0,0.70100515]
[1756883607565,0.0248232,110810.0,110800.0,0.87724216]
[1756883610568,0.003,110810.0,110800.0,0.87724216]
[1756883612370,0.003,110810.0,110800.0,1.11724216]
[1756883612562,0.003,110810.0,110800.0,0.87724216]
[1756883613071,0.003,110810.0,110800.0,1.14120324]
[1756883613269,0.003,110810.0,110800.0,0.89724216]
[1756883613467,0.003,110810.0,110800.0,0.87724216]
[1756883614264,0.003,110810.0,110800.0,1.16724216]
[1756883614562,0.003,110810.0,110800.0,1.18202395]
[1756883614765,0.003,110810.0,110800.0,0.91202395]
[1756883615169,0.003,110810.0,110800.0,0.89202395]
[1756883616773,0.003,110810.0,110800.0,0.87724216]
[1756883617068,0.003,110810.0,110800.0,1.71636216]
[1756883617278,0.003,110810.0,110800.0,1.73115903]
[1756883619372,0.003,110810.0,110800.0,1.99512011]
[1756883619773,0.003,110810.0,110800.0,2.37512011]
[1756883620073,0.002,110810.0,110800.0,2.46536401]
[1756883620467,0.002,110810.0,110800.0,2.53009783]
[1756883621174,0.002,110810.0,110800.0,2.46536401]
[1756883621573,0.002,110810.0,110800.0,2.54591032]
[1756883621778,0.0001,110820.0,110800.0,2.58610857]
[1756883621965,0.0001,110850.0,110810.0,0.93735798]
[1756883622166,0.34,110850.0,110840.0,0.60858216]
[1756883622472,0.3617661,110850.0,110840.0,0.34462108]
[1756883622672,0.3617661,110850.0,110840.0,0.60858216]
[1756883623165,0.3617661,110850.0,110840.0,0.34462108]
[1756883623474,0.62772718,110850.0,110840.0,0.34562108]
[1756883624777,0.62872718,110850.0,110840.0,0.34562108]
[1756883626566,0.3647661,110850.0,110840.0,0.34562108]
[1756883626766,0.62872718,110850.0,110840.0,0.34562108]
[1756883630282,0.62872718,110850.0,110840.0,0.08166]
[1756883630483,0.62872718,110850.0,110840.0,0.34562108]
[1756883630682,0.87872718,110850.0,110840.0,0.08166]
[1756883630881,0.87872718,110850.0,110840.0,0.001]
[1756883631182,0.87872718,110850.0,110840.0,0.02478]
[1756883631782,0.87872718,110850.0,110840.0,0.001]
[1756883634292,0.87872718,110850.0,110840.0,0.0475]
[1756883634991,0.87872718,110850.0,110840.0,0.001]
[1756883635791,1.14268826,110850.0,110840.0,0.001]
[1756883635987,0.6147661,110850.0,110840.0,0.001]
[1756883636180,1.14268826,110850.0,110840.0,0.001]
[1756883639290,0.89268826,110850.0,110840.0,0.001]
[1756883639881,1.14268826,110850.0,110840.0,0.001]
[1756883645098,1.1911259,110850.0,110840.0,0.001]
[1756883650001,2.0288459,110850.0,110840.0,0.001]
[1756883652407,1.1911259,110850.0,110840.0,0.001]
[1756883652607,2.0286459,110850.0,110840.0,0.001]
[1756883653304,2.0286459,110850.0,110840.0,0.02569]
[1756883655312,2.0286459,110850.0,110840.0,0.001]
[1756883655805,1.76468482,110850.0,110840.0,0.02569]
[1756883656011,2.0286459,110850.0,110840.0,0.02569]
[1756883656711,2.0284859,110850.0,110840.0,0.02569]
[1756883658214,2.0284859,110850.0,110840.0,0.04977]
[1756883658712,2.02851628,110850.0,110840.0,0.04977]
[1756883659315,1.19115628,110850.0,110840.0,0.04977]
[1756883659610,2.02839628,110850.0,110840.0,0.04977]
[1756883662219,1.19115628,110850.0,110840.0,0.04977]
[1756883662409,0.6771952,110850.0,110840.0,0.60031108]
[1756883662715,1.20187648,110850.0,110840.0,0.86427216]
[1756883663014,1.46583756,110850.0,110840.0,0.60031108]
[1756883664114,1.20187648,110850.0,110840.0,0.60031108]
[1756883664315,1.46583756,110850.0,110840.0,0.60031108]
[1756883665408,1.20187648,110850.0,110840.0,0.60031108]
[1756883665606,1.46583756,110850.0,110840.0,0.60031108]
[1756883667614,1.55369232,110850.0,110840.0,0.33635]
[1756883668516,1.20187648,110850.0,110840.0,0.33635]
[1756883668710,1.55369232,110850.0,110840.0,0.33635]
[1756883669714,1.20187648,110850.0,110840.0,0.33635]
[1756883669919,1.55369232,110850.0,110840.0,0.33635]
[1756883672020,1.20187648,110850.0,110840.0,0.33635]
[1756883672222,1.20187648,110850.0,110840.0,0.251]
[1756883672223,1.55369232,110850.0,110840.0,0.251]
[1756883672713,1.55369232,110850.0,110840.0,0.27569]
[1756883673021,1.55369232,110850.0,110840.0,0.29977]
[1756883673520,1.55369232,110850.0,110840.0,0.33635]
[1756883674021,1.55325232,110850.0,110840.0,0.33635]
[1756883675524,1.55317232,110850.0,110840.0,0.33635]
[1756883675924,1.20135648,110850.0,110840.0,0.33635]
[1756883676119,1.55317232,110850.0,110840.0,0.33635]
[1756883678526,1.55317232,110850.0,110840.0,0.29977]
[1756883678825,1.55317232,110850.0,110840.0,0.3359]
[1756883680426,1.20135648,110850.0,110840.0,0.3359]
[1756883680622,1.55317232,110850.0,110840.0,0.3359]
[1756883682929,1.80317232,110850.0,110840.0,0.001]
[1756883683125,1.80277232,110850.0,110840.0,0.001]
[1756883686632,1.80277232,110850.0,110840.0,0.02543]
[1756883687330,1.80261232,110850.0,110840.0,0.08543]
[1756883688530,1.45079648,110850.0,110840.0,0.08543]
[1756883688738,1.80261232,110850.0,110840.0,0.08543]
[1756883689238,1.45079648,110850.0,110840.0,0.0493]
[1756883689432,1.80261232,110850.0,110840.0,0.08543]
[1756883690222,1.45079648,110850.0,110840.0,0.08543]
[1756883690425,1.80261232,110850.0,110840.0,0.08543]
[1756883692236,1.80261232,110850.0,110840.0,0.0493]
[1756883692634,1.45079648,110850.0,110840.0,0.001]
[1756883692835,1.80261232,110850.0,110840.0,0.02543]
[1756883694238,1.80261232,110850.0,110840.0,0.001]
[1756883695340,1.80261232,110850.0,110840.0,0.02543]
[1756883695739,1.80261232,110850.0,110840.0,0.001]
[1756883696131,1.85104996,110850.0,110840.0,0.001]
[1756883696327,1.60104996,110850.0,110840.0,0.001]
[1756883697040,0.76504996,110850.0,110840.0,0.001]
[1756883697239,1.60064996,110850.0,110840.0,0.0493]
[1756883697436,0.76504996,110850.0,110840.0,0.0493]
[1756883697643,1.60064996,110850.0,110840.0,0.0493]
[1756883700336,1.60064996,110850.0,110840.0,0.001]
[1756883700638,1.60052996,110850.0,110840.0,0.001]
[1756883700835,0.76504996,110850.0,110840.0,0.001]
[1756883701034,1.60048996,110850.0,110840.0,0.0493]
[1756883701738,1.60048996,110850.0,110840.0,0.02543]
[1756883701934,1.60048996,110850.0,110840.0,0.001]
[1756883702538,0.76504996,110850.0,110840.0,0.001]
[1756883702742,1.60040996,110850.0,110840.0,0.02543]
[1756883702939,1.60040996,110850.0,110840.0,0.001]
[1756883703140,1.60040996,110850.0,110840.0,0.02543]
[1756883703341,1.24859412,110850.0,110840.0,0.0493]
[1756883703549,1.60040996,110850.0,110840.0,0.0493]
[1756883703740,1.24855412,110850.0,110840.0,0.0493]
[1756883704045,1.60036996,110850.0,110840.0,0.08543]
[1756883704248,1.60036996,110850.0,110840.0,0.0493]
[1756883704446,1.60032996,110850.0,110840.0,0.0493]
[1756883709052,1.60032996,110850.0,110840.0,0.001]
[1756883709848,2.15370816,110850.0,110820.0,0.0001]
[1756883710052,0.35181584,110830.0,110820.0,0.0001]
[1756883710348,1.54865232,110830.0,110820.0,0.0001]
[1756883710555,1.59731264,110830.0,110820.0,0.0001]
[1756883711248,1.59731264,110830.0,110820.0,0.0011]
[1756883711457,1.59731264,110830.0,110820.0,0.0021]
[1756883712150,1.59731264,110830.0,110820.0,0.0011]
[1756883712351,1.79865232,110830.0,110820.0,0.0021]
[1756883712547,1.89288743,110830.0,110820.0,0.0011]
[1756883712750,1.95765019,110830.0,110780.0,0.08206]
[1756883712943,0.35181584,110790.0,110780.0,0.08206]
[1756883713149,0.69181584,110790.0,110780.0,0.08206]
[1756883715351,0.34,110790.0,110780.0,0.08206]
[1756883715551,0.34,110790.0,110780.0,0.08506]
[1756883716244,1.1991711,110800.0,110790.0,0.03558]
[1756883716450,1.5814941,110800.0,110790.0,0.08206]
[1756883717051,1.22967826,110800.0,110790.0,0.08206]
[1756883717252,1.5814941,110800.0,110790.0,0.08206]
[1756883717452,1.5814541,110800.0,110790.0,0.08206]
[1756883717856,1.5814541,110800.0,110790.0,0.08306]
[1756883718459,1.5814541,110800.0,110790.0,0.04748]
[1756883718961,1.5824541,110800.0,110790.0,0.04748]
[1756883722264,1.5824541,110800.0,110790.0,0.001]
[1756883725363,1.5822541,110800.0,110790.0,0.02465]
[1756883725666,1.5822541,110800.0,110790.0,0.04748]
[1756883726057,1.5822541,110800.0,110790.0,0.001]
[1756883726258,1.93406994,110800.0,110790.0,0.001]
[1756883726463,2.18406994,110800.0,110790.0,0.001]
[1756883728968,2.18394994,110800.0,110790.0,0.001]
[1756883729461,2.27294559,110800.0,110790.0,0.001]
[1756883731071,2.27290559,110800.0,110790.0,0.001]
[1756883732261,2.32149574,110800.0,110790.0,0.001]
[1756883732462,2.32149574,110800.0,110790.0,0.0011]
[1756883736066,2.32137574,110800.0,110790.0,0.0011]
[1756883738074,2.27278559,110800.0,110790.0,0.0011]
[1756883738262,2.02278559,110800.0,110790.0,0.0011]
[1756883738467,2.02278559,110800.0,110770.0,0.0001]
[1756883738468,2.78134835,110800.0,110770.0,0.0001]
[1756883738667,0.79262733,110780.0,110770.0,0.0001]
[1756883738868,1.99923033,110780.0,110760.0,0.04658]
[1756883739062,0.52841822,110770.0,110760.0,0.04658]
[1756883739271,0.87074122,110770.0,110760.0,0.08097]
[1756883739472,1.70498122,110770.0,110760.0,0.08097]
[1756883740776,1.77549883,110770.0,110760.0,0.08497]
[1756883741280,1.24708061,110770.0,110760.0,0.08497]
[1756883741470,1.77349883,110770.0,110760.0,0.08497]
[1756883742683,1.24508061,110770.0,110760.0,0.08497]
[1756883742886,1.77349883,110770.0,110760.0,0.08797]
[1756883743381,1.77349883,110770.0,110760.0,0.007]
[1756883743685,2.03770794,110770.0,110760.0,0.007]
[1756883743980,0.93925883,110770.0,110760.0,0.007]
[1756883744171,1.77341883,110770.0,110760.0,0.0296]
[1756883744375,1.83818159,110770.0,110760.0,0.0296]
[1756883744580,0.47560337,110770.0,110760.0,0.05376]
[1756883744782,1.77337883,110770.0,110760.0,0.05376]
[1756883745083,1.77637883,110770.0,110760.0,0.05076]
[1756883745381,1.84114159,110770.0,110760.0,0.05076]
[1756883745880,1.77637883,110770.0,110760.0,0.05076]
[1756883746283,0.94225883,110770.0,110760.0,0.05076]
[1756883746485,1.51216972,110770.0,110760.0,0.59945911]
[1756883746673,0.72551515,110770.0,110760.0,0.59545911]
[1756883746881,0.41584061,110770.0,110760.0,0.86066822]
[1756883747280,0.41584061,110770.0,110760.0,0.59645911]
[1756883747980,0.68004972,110770.0,110760.0,0.59645911]
[1756883748590,0.68004972,110770.0,110760.0,0.33225]
[1756883748778,0.68004972,110770.0,110760.0,0.59645911]
[1756883750482,0.41584061,110770.0,110760.0,0.86066822]
[1756883750683,0.17584061,110770.0,110760.0,0.86066822]
[1756883750882,0.006,110770.0,110760.0,0.86066822]
[1756883751590,0.006,110770.0,110760.0,1.69462822]
[1756883754383,0.006,110770.0,110760.0,0.86066822]
[1756883754587,0.63266959,110770.0,110760.0,0.08225]
[1756883754788,0.36846048,110770.0,110760.0,0.08225]
[1756883754988,0.63266959,110770.0,110760.0,0.08225]
[1756883755391,0.63266959,110770.0,110760.0,0.34645911]
[1756883757981,0.63266959,110770.0,110760.0,0.08225]
[1756883758679,0.63266959,110770.0,110760.0,0.34645911]
[1756883758876,0.8268787,110770.0,110760.0,0.04776]
[1756883759080,0.92266959,110770.0,110760.0,0.04776]
[1756883759285,0.9368787,110770.0,110760.0,0.04776]
[1756883759486,0.9368787,110770.0,110760.0,0.0236]
[1756883759682,1.1868787,110770.0,110760.0,0.001]
[1756883760089,1.18687832,110770.0,110760.0,0.001]
[1756883762092,0.92266921,110770.0,110760.0,0.0236]
[1756883762387,1.18687832,110770.0,110760.0,0.0236]
[1756883763291,1.18687832,110770.0,110760.0,0.04776]
[1756883763480,0.92266921,110770.0,110760.0,0.04776]
[1756883763682,0.92266921,110770.0,110760.0,0.0236]
[1756883763877,0.6584601,110770.0,110760.0,0.0236]
[1756883764086,0.92266921,110770.0,110760.0,0.08225]
[1756883764293,0.92266921,110770.0,110760.0,0.04776]
[1756883765590,0.92266921,110770.0,110760.0,0.08225]
[1756883766994,0.0384601,110770.0,110760.0,0.61066822]
[1756883767196,0.3684601,110770.0,110760.0,0.86066822]
[1756883767389,0.3684601,110770.0,110760.0,0.59645911]
[1756883767591,0.63266921,110770.0,110760.0,0.59645911]
[1756883769106,0.3684601,110770.0,110760.0,0.33225]
[1756883769399,0.0284601,110770.0,110760.0,0.86066822]
[1756883769599,0.0284601,110770.0,110760.0,0.59645911]
[1756883769893,0.006,110770.0,110760.0,0.86066822]
[1756883770293,0.02848404,110770.0,110760.0,0.86066822]
[1756883771198,0.006,110770.0,110760.0,0.86066822]
[1756883771595,0.006,110770.0,110760.0,0.61066822]
[1756883771793,0.006,110770.0,110760.0,0.86066822]
[1756883772696,0.006,110770.0,110760.0,0.59645911]
[1756883773607,0.27020911,110770.0,110760.0,0.59645911]
[1756883773805,0.60020911,110770.0,110760.0,0.34645911]
[1756883774600,0.60020911,110770.0,110760.0,0.08225]
[1756883774798,0.62269938,110770.0,110760.0,0.08225]
[1756883774997,0.32269938,110770.0,110760.0,0.08225]
[1756883775303,0.61269938,110770.0,110760.0,0.08225]
[1756883775800,0.34849027,110770.0,110760.0,0.08225]
[1756883776103,1.12690849,110770.0,110760.0,0.001]
[1756883776305,1.96018849,110770.0,110760.0,0.001]
[1756883777692,1.69597938,110770.0,110760.0,0.02384]
[1756883777895,1.96018849,110770.0,110760.0,0.02384]
[1756883778500,1.96018849,110770.0,110760.0,0.04776]
[1756883778898,1.96018849,110770.0,110760.0,0.001]
[1756883781716,1.96018849,110770.0,110760.0,0.02384]
[1756883782308,1.12690849,110770.0,110760.0,0.02384]
[1756883782609,1.12690849,110770.0,110760.0,0.001]
[1756883782610,1.96014849,110770.0,110760.0,0.001]
[1756883785112,2.00861392,110770.0,110760.0,0.001]
[1756883785310,1.96014849,110770.0,110760.0,0.001]
[1756883785917,2.00861392,110770.0,110760.0,0.001]
[1756883786522,1.96014849,110770.0,110760.0,0.001]
[1756883788014,2.27282303,110770.0,110760.0,0.001]
[1756883788313,2.38930475,110770.0,110750.0,0.0002]
[1756883788515,0.8411609,110760.0,110750.0,0.0002]
[1756883788713,0.8411609,110760.0,110740.0,0.02304]
[1756883788714,1.23365117,110760.0,110740.0,0.02304]
[1756883788914,1.36157822,110750.0,110740.0,0.02304]
[1756883789110,1.73406849,110750.0,110740.0,0.02284]
[1756883789511,1.55819132,110750.0,110740.0,0.02284]
[1756883790220,1.55819132,110750.0,110740.0,0.08368]
[1756883790517,1.55819132,110750.0,110740.0,0.08468]
[1756883791018,1.55819132,110750.0,110740.0,0.04776]
[1756883791912,1.55819132,110750.0,110740.0,0.08468]
[1756883792113,0.72503132,110750.0,110740.0,0.08468]
[1756883792313,1.55819132,110750.0,110740.0,0.08468]
[1756883792916,1.22565027,110750.0,110740.0,0.08468]
[1756883793111,1.57819132,110750.0,110740.0,0.08468]
[1756883793312,0.74503132,110750.0,110740.0,0.08468]
[1756883793512,1.57819132,110750.0,110740.0,0.08468]
[1756883793813,0.37503132,110750.0,110740.0,0.33468]
[1756883794015,0.03249027,110750.0,110740.0,0.33468]
[1756883794517,0.03249027,110750.0,110740.0,0.68722105]
[1756883794718,0.03249027,110750.0,110740.0,0.33468]
[1756883795518,0.02249027,110750.0,110740.0,0.33468]
[1756883795823,0.36249027,110750.0,110740.0,0.33468]